bitfinex/quotes_ETHUSD_20251015
["timestamp","ask_amount","ask_price","bid_price","bid_amount"]
[1760559002297,3.4311081,3994.9,3994.1,3.26209294]
[1760559003553,0.3491,3995.0,3994.1,3.26209294]
[1760559003793,0.3491,3995.0,3994.1,3.93379294]
[1760559004011,0.3491,3995.0,3994.1,4.60259099]
[1760559004319,0.2243,3995.0,3994.1,4.01595407]
[1760559004518,0.2243,3995.0,3994.1,3.90585407]
[1760559005816,0.2243,3995.0,3994.1,4.34265407]
[1760559006488,0.2243,3995.0,3994.1,3.90585407]
[1760559006818,0.2243,3995.0,3994.1,4.36769099]
[1760559006977,0.2243,3995.0,3994.1,4.34265407]
[1760559007407,0.2243,3995.0,3994.1,3.90585407]
[1760559008283,0.001,3994.6,3994.1,3.90585407]
[1760559010081,0.001,3994.6,3994.1,2.62849294]
[1760559010281,3.4321081,3994.6,3994.1,2.62849294]
[1760559010486,3.4321081,3994.6,3994.1,2.50369294]
[1760559010685,3.5569081,3994.6,3994.1,2.50369294]
[1760559012100,0.1258,3994.6,3994.1,2.50369294]
[1760559012304,0.001,3994.6,3994.1,7.01629294]
[1760559012595,0.001,3994.6,3994.1,7.57789294]
[1760559013210,0.001,3994.6,3994.1,7.81279294]
[1760559013413,0.001,3994.6,3994.1,8.84445407]
[1760559014124,0.001,3994.6,3994.1,8.75775407]
[1760559014322,0.001,3994.6,3994.1,9.19455407]
[1760559014520,0.001,3994.6,3994.1,8.52285407]
[1760559014822,0.001,3994.6,3994.1,7.49119294]
[1760559015136,0.001,3994.6,3994.1,6.50749294]
[1760559017828,0.099,3994.5,3994.1,6.50749294]
[1760559018043,3.4321081,3994.6,3994.1,6.50749294]
[1760559018245,0.1,3994.2,3994.1,3.879]
[1760559018398,0.1,3994.2,3994.0,3.879]
[1760559018592,0.099,3994.1,3994.0,3.879]
[1760559018794,0.099,3994.1,3993.8,2.5038754]
[1760559019031,0.1625,3993.9,3993.8,2.5038754]
[1760559019628,0.001,3994.2,3994.1,3.13729294]
[1760559019832,0.001,3994.2,3994.1,3.37219294]
[1760559020044,0.001,3994.2,3994.1,3.80899294]
[1760559021330,0.001,3994.2,3994.1,3.83402986]
[1760559021531,0.001,3994.2,3994.1,3.80899294]
[1760559021729,0.001,3994.2,3994.1,5.13889116]
[1760559022694,0.001,3994.2,3994.1,9.50789116]
[1760559023058,0.001,3994.2,3994.1,6.86689116]
[1760559025072,0.001,3994.2,3994.1,9.42189116]
[1760559025281,0.001,3994.2,3994.1,6.86689116]
[1760559025509,0.001,3994.2,3994.1,3.83359116]
[1760559025709,0.001,3994.2,3994.1,2.50369294]
[1760559025913,0.001,3994.2,3994.1,3.13729294]
[1760559026602,0.001,3994.2,3994.1,2.50369294]
[1760559027469,0.001,3994.2,3994.1,3.13729294]
[1760559029405,0.001,3994.2,3994.1,4.06125957]
[1760559029602,0.001,3994.2,3994.1,4.18605957]
[1760559030010,0.001,3994.2,3994.1,3.26209294]
[1760559030310,0.1001,3994.2,3994.1,0.1248]
[1760559030510,0.1001,3994.2,3993.8,0.002]
[1760559030802,0.1365,3993.9,3993.8,0.002]
[1760559031188,0.2374,3993.9,3993.8,0.002]
[1760559032305,0.2374,3993.9,3993.8,2.50588101]
[1760559033003,0.2374,3993.9,3993.8,0.002]
[1760559035114,28.268017,3993.9,3993.8,0.002]
[1760559035281,28.39199403,3993.9,3993.8,0.002]
[1760559035481,30.89581235,3993.9,3993.8,0.002]
[1760559037113,2.86519535,3993.9,3993.8,0.002]
[1760559037296,30.89581235,3993.9,3993.8,0.002]
[1760559041795,28.39199403,3993.9,3993.8,0.002]
[1760559042198,0.1248,3994.0,3993.8,0.002]
[1760559042419,0.001,3994.2,3993.8,0.002]
[1760559042724,1.729,3994.2,3993.8,0.002]
[1760559043306,0.001,3994.2,3993.8,0.002]
[1760559043624,0.001,3994.2,3993.9,2.50377741]
[1760559043625,0.12477184,3994.2,3993.9,2.50377741]
[1760559043800,0.001,3994.2,3993.8,0.002]
[1760559044005,0.001,3994.2,3993.8,2.50585626]
[1760559044800,0.001,3994.2,3993.8,0.002]
[1760559045328,0.001,3994.2,3993.8,2.50587307]
[1760559046537,0.001,3994.2,3993.9,2.50380636]
[1760559046713,0.001,3994.2,3994.0,2.50375563]
[1760559047214,0.001,3994.2,3993.8,0.002]
[1760559047404,0.001,3994.2,3993.8,2.50585805]
[1760559047833,0.1384,3993.9,3993.8,0.002]
[1760559048033,28.268017,3993.9,3993.8,0.002]
[1760559048632,14.1604,3993.9,3993.8,0.002]
[1760559048955,28.169017,3993.9,3993.8,0.002]
[1760559049098,28.268017,3993.9,3993.8,0.002]
[1760559049498,30.77183532,3993.9,3993.8,0.002]
[1760559051729,4.243,3993.9,3993.8,0.002]
[1760559051936,17.19,3993.9,3993.8,0.002]
[1760559052133,12.115,3993.9,3993.8,0.002]
[1760559052339,15.79,3994.0,3993.8,0.002]
[1760559052536,1.728,3994.0,3993.8,0.002]
[1760559052747,0.1248,3994.1,3993.9,2.94707452]
[1760559052951,0.1248,3994.1,3994.0,0.4433]
[1760559053962,0.1248,3994.1,3994.0,2.50375563]
[1760559054259,0.1248,3994.1,3994.0,2.94705563]
[1760559055317,0.1248,3994.1,3994.0,0.4433]
[1760559056250,0.001,3994.2,3994.0,2.93985563]
[1760559056440,0.001,3994.2,3994.0,2.50375563]
[1760559056655,0.001,3994.2,3993.8,2.50587008]
[1760559057044,0.001,3994.2,3993.8,2.94197008]
[1760559057244,0.001,3994.2,3993.8,2.94196741]
[1760559058272,0.001,3994.2,3993.9,2.50380994]
[1760559058575,0.001,3994.2,3993.8,0.4381]
[1760559058576,0.138,3993.9,3993.8,0.002]
[1760559058791,4.11479557,3994.1,3993.8,0.002]
[1760559058947,28.030617,3994.0,3993.8,0.002]
[1760559059251,38.168217,3993.9,3993.8,0.002]
[1760559059451,30.67203532,3993.9,3993.8,0.002]
[1760559059751,30.77183532,3993.9,3993.8,0.002]
[1760559061087,0.001,3994.2,3993.8,0.002]
[1760559061575,0.001,3994.2,3993.9,0.4361]
[1760559061744,0.001,3994.2,3994.1,2.50369294]
[1760559061941,0.001,3994.2,3994.0,2.93983483]
[1760559062141,0.001,3994.2,3993.9,2.71839382]
[1760559062363,0.001,3994.2,3993.9,3.15449382]
[1760559062738,0.001,3994.2,3993.9,2.71839382]
[1760559062957,0.001,3994.2,3994.0,0.4361]
[1760559063175,0.001,3994.2,3993.8,2.50584316]
[1760559063340,0.001,3994.2,3993.8,0.002]
[1760559063544,0.001,3994.2,3993.8,2.50587769]
[1760559064287,0.001,3994.2,3993.9,2.50381561]
[1760559064444,0.001,3994.2,3993.9,2.93991561]
[1760559064776,0.001,3994.2,3994.1,0.2146]
[1760559064987,0.001,3994.2,3994.1,2.71829294]
[1760559065288,0.001,3994.2,3994.1,3.15439294]
[1760559065494,0.001,3994.2,3994.1,3.78799294]
[1760559067149,0.001,3994.2,3994.1,2.71829294]
[1760559067385,0.001,3994.2,3994.1,2.50369294]
[1760559067571,0.001,3994.2,3994.1,2.93979294]
[1760559067747,0.001,3994.2,3994.1,3.4843537]
[1760559068485,0.001,3994.2,3993.9,2.50377265]
[1760559068646,0.001,3994.2,3993.9,2.62857265]
[1760559069049,0.001,3994.2,3993.9,0.1248]
[1760559069272,0.001,3994.2,3993.9,2.62860558]
[1760559069449,0.001,3994.2,3994.0,2.50374839]
[1760559070582,0.001,3994.2,3993.9,2.62860319]
[1760559070950,0.001,3994.2,3993.9,0.5609]
[1760559071281,0.001,3994.2,3993.9,4.0038]
[1760559071473,0.001,3994.2,3994.0,2.50370437]
[1760559072078,0.001,3994.2,3994.1,2.50369294]
[1760559072454,0.001,3994.2,3993.9,4.4399]
[1760559072653,0.001,3994.2,3993.9,4.0038]
[1760559073183,0.001,3994.2,3993.9,6.50759503]
[1760559073483,0.001,3994.2,3994.1,2.50369294]
[1760559073987,0.001,3994.2,3994.1,2.93979294]
[1760559076555,0.001,3994.2,3994.0,2.50373358]
[1760559076751,0.001,3994.2,3993.9,4.0038]
[1760559077257,0.001,3994.2,3994.0,2.50375563]
[1760559077587,0.001,3994.2,3993.9,6.50759792]
[1760559077783,0.001,3994.2,3994.0,2.50375096]
[1760559077990,0.001,3994.2,3994.0,2.50374229]
[1760559078194,0.001,3994.2,3993.9,6.50759361]
[1760559078658,0.001,3994.2,3994.0,2.50374811]
[1760559078858,4.21629557,3994.2,3993.8,0.002]
[1760559079081,0.1005,3994.1,3993.8,0.002]
[1760559079253,4.24059557,3994.2,3993.8,0.002]
[1760559080354,0.1258,3994.2,3993.8,0.002]
[1760559080558,0.1258,3994.2,3993.8,2.50587793]
[1760559080993,0.1258,3994.2,3993.9,2.93626429]
[1760559081165,0.1258,3994.2,3994.0,2.5037487]
[1760559081762,0.1258,3994.2,3993.9,2.93629534]
[1760559082672,0.1258,3994.2,3993.8,0.002]
[1760559083266,0.1258,3994.2,3994.0,2.50374092]
[1760559084162,0.1258,3994.2,3994.0,2.93624092]
[1760559084392,0.1258,3994.2,3993.9,2.50381003]
[1760559085293,0.1258,3994.2,3993.9,6.38281003]
[1760559085589,0.1258,3994.2,3994.0,2.50372542]
[1760559085988,0.1258,3994.2,3993.9,6.38281745]
[1760559086189,0.1258,3994.2,3993.9,6.38281506]
[1760559086488,0.1258,3994.2,3993.9,6.38281684]
[1760559088693,0.1258,3994.2,3993.9,4.3115]
[1760559088886,0.1258,3994.2,3994.0,2.93621666]
[1760559089195,0.1258,3994.2,3993.9,6.38279493]
[1760559089500,0.1258,3994.2,3993.9,3.879]
[1760559089870,0.1258,3994.2,3993.9,6.38280826]
[1760559090395,0.1258,3994.2,3993.9,3.879]
[1760559090693,0.1258,3994.2,3993.9,4.3115]
[1760559090869,0.1258,3994.2,3994.1,2.72009294]
[1760559091266,0.1258,3994.2,3994.1,3.15259294]
[1760559092564,0.1258,3994.2,3993.9,3.879]
[1760559093312,0.1258,3994.2,3994.0,2.5037189]
[1760559093613,0.1258,3994.2,3994.0,2.50374996]
[1760559094181,0.1258,3994.2,3994.1,2.50369294]
[1760559095794,0.1258,3994.2,3994.0,0.4325]
[1760559095795,0.1258,3994.2,3994.0,2.93623777]
[1760559097071,0.1258,3994.2,3994.0,2.50374596]
[1760559097490,0.1258,3994.2,3993.8,0.002]
[1760559097689,2.50373618,3994.1,3993.8,0.002]
[1760559097893,40.67123532,3993.9,3993.8,0.002]
[1760559098091,30.67123532,3993.9,3993.8,0.002]
[1760559098374,30.77213532,3993.9,3993.8,0.002]
[1760559099906,0.1248,3994.1,3993.8,0.4345]
[1760559100212,0.1387,3993.9,3993.8,0.002]
[1760559100387,30.67313532,3993.9,3993.8,0.002]
[1760559100583,30.77213532,3993.9,3993.8,0.002]
[1760559101776,2.74151832,3993.9,3993.8,0.002]
[1760559102073,30.77213532,3993.9,3993.8,0.002]
[1760559102979,28.030617,3994.0,3993.8,0.002]
[1760559103309,10.0,3994.0,3993.8,0.002]
[1760559103511,28.030617,3994.0,3993.8,0.002]
[1760559104206,0.001,3994.2,3993.8,0.002]
[1760559104408,0.1248,3993.9,3993.8,0.002]
[1760559105010,0.1248,3993.9,3993.8,0.4345]
[1760559106281,0.1248,3993.9,3993.8,0.002]
[1760559108489,0.1258,3993.9,3993.8,0.002]
[1760559118338,2.62961832,3993.9,3993.8,0.002]
[1760559118546,30.89793532,3993.9,3993.8,0.002]
[1760559118720,16.7638,3993.9,3993.8,0.002]
[1760559118916,19.50391832,3993.9,3993.8,0.002]
[1760559119238,19.78923448,3993.9,3993.8,0.002]
[1760559119439,36.33897194,3993.9,3993.8,0.002]
[1760559119738,36.59779365,3993.9,3993.8,0.002]
[1760559120161,30.53468611,3993.5,3993.4,0.002]
[1760559120444,35.97712273,3993.5,3993.4,0.002]
[1760559120645,36.21342273,3993.5,3993.4,0.002]
[1760559121511,36.47224444,3993.5,3993.4,0.002]
[1760559121707,33.96405741,3993.1,3993.0,0.002]
[1760559122240,34.20035741,3993.1,3993.0,0.002]
[1760559123366,31.69603746,3993.1,3993.0,0.002]
[1760559123646,22.272,3993.1,3993.0,0.002]
[1760559123854,25.70112046,3993.1,3993.0,0.002]
[1760559124641,33.18773746,3993.1,3993.0,0.002]
[1760559125723,35.79105741,3993.1,3993.0,0.002]
[1760559126821,35.69205741,3993.1,3993.0,0.002]
[1760559127022,35.79105741,3993.1,3993.0,0.002]
[1760559127647,35.69205741,3993.1,3993.0,0.002]
[1760559128557,7.66144041,3993.1,3993.0,0.002]
[1760559128760,35.69205741,3993.1,3993.0,0.002]
[1760559129763,45.69205741,3993.1,3993.0,0.002]
[1760559129930,35.69205741,3993.1,3993.0,0.002]
[1760559130456,35.79105741,3993.1,3993.0,0.002]
[1760559130660,7.66144041,3993.1,3993.0,0.002]
[1760559130959,35.69205741,3993.1,3993.0,0.002]
[1760559132339,36.07637357,3993.1,3993.0,0.002]
[1760559134631,8.04575657,3993.1,3993.0,0.002]
[1760559134835,36.07637357,3993.1,3993.0,0.002]
[1760559135540,33.18773746,3993.1,3993.0,0.002]
[1760559135740,33.18773746,3993.1,3993.0,0.4556]
[1760559136441,33.18773746,3993.1,3993.0,0.002]
[1760559137065,35.69205741,3993.1,3993.0,0.002]
[1760559137235,33.18773746,3993.1,3993.0,0.002]
[1760559137437,29.758617,3993.1,3993.0,0.002]
[1760559137638,33.18773746,3993.1,3993.0,0.4556]
[1760559138077,35.69205741,3993.1,3993.0,0.4556]
[1760559138386,35.69205741,3993.1,3993.0,0.002]
[1760559140766,35.79105741,3993.1,3993.0,0.002]
[1760559140958,36.07637357,3993.1,3993.0,0.002]
[1760559142945,46.07637357,3993.1,3993.0,0.002]
[1760559143149,36.07637357,3993.1,3993.0,0.002]
[1760559143775,35.97737357,3993.1,3993.0,0.002]
[1760559148350,35.69205741,3993.1,3993.0,0.4474]
[1760559148779,35.69205741,3993.1,3993.0,0.002]
[1760559149682,35.69205741,3993.1,3993.0,0.4474]
[1760559149880,35.69205741,3993.1,3993.0,0.002]
[1760559150082,36.04987912,3993.1,3993.0,0.002]
[1760559150284,36.33743458,3993.1,3993.0,0.002]
[1760559152168,36.23843458,3993.1,3993.0,0.002]
[1760559152497,36.33743458,3993.1,3993.0,0.002]
[1760559152668,36.23843458,3993.1,3993.0,0.002]
[1760559154070,8.20781758,3993.1,3993.0,0.002]
[1760559154287,36.23843458,3993.1,3993.0,0.002]
[1760559155281,36.33743458,3993.1,3993.0,0.002]
[1760559155483,36.23843458,3993.1,3993.0,0.002]
[1760559155692,35.97961287,3993.1,3993.0,0.002]
[1760559155894,35.69205741,3993.1,3993.0,0.002]
[1760559158177,7.66144041,3993.1,3993.0,0.002]
[1760559158405,35.69205741,3993.1,3993.0,0.002]
[1760559163417,32.26293695,3993.1,3993.0,0.002]
[1760559163721,35.69205741,3993.1,3993.0,0.4474]
[1760559165392,8.3502201,3993.1,3993.0,0.4474]
[1760559165609,36.3808371,3993.1,3993.0,0.4474]
[1760559167414,36.3808371,3993.1,3993.0,0.002]
[1760559168385,36.3808371,3993.1,3993.0,0.4474]
[1760559168613,36.3808371,3993.1,3993.0,0.002]
[1760559171899,36.66839256,3993.1,3993.0,0.002]
[1760559172102,37.02621427,3993.1,3993.0,0.002]
[1760559174115,36.66839256,3993.1,3993.0,0.002]
[1760559175229,30.53518784,3992.7,3992.6,0.002]
[1760559175432,36.66864345,3992.7,3992.6,0.002]
[1760559175732,46.66864345,3992.7,3992.6,0.002]
[1760559176031,36.66864345,3992.7,3992.6,0.002]
[1760559176331,36.77004345,3992.7,3992.6,0.002]
[1760559180228,2.50494727,3992.1,3992.0,0.002]
[1760559180528,36.66901988,3992.1,3992.0,0.002]
[1760559181103,32.55111973,3992.1,3992.0,0.002]
[1760559181308,32.26356427,3992.1,3992.0,0.4482]
[1760559181532,24.11594727,3992.1,3992.0,0.4482]
[1760559181911,1.728,3992.1,3992.0,0.4482]
[1760559182640,1.728,3992.1,3990.9,0.2164]
[1760559182641,1.728,3992.1,3798.4,0.01284]
[1760559182846,1.728,3992.1,3990.6,2.50588883]
[1760559182847,0.6688781,3990.7,3990.6,2.50588883]
[1760559183017,1.3377562,3991.2,3991.1,2.5055749]
[1760559183222,1.8745123,3991.2,3991.1,2.5055749]
[1760559183814,0.5367561,3991.2,3991.1,2.5055749]
[1760559184038,0.5367561,3991.2,3991.1,3.00669772]
[1760559186054,0.5367561,3991.2,3990.3,2.50603344]
[1760559186214,0.5367561,3991.2,3989.8,0.6336]
[1760559186215,1.87145172,3991.1,3990.5,0.75344228]
[1760559186414,1.87145172,3991.0,3990.7,2.50579368]
[1760559186644,7.50165,3991.2,3989.4,0.15]
[1760559186645,1.87145172,3990.9,3989.4,0.15]
[1760559186914,0.90277362,3991.1,3990.0,2.5062054]
[1760559186915,1.33634562,3990.4,3990.0,2.5062054]
[1760559187222,0.5351061,3990.3,3990.1,2.50618914]
[1760559187429,1.33634562,3990.4,3990.2,2.50614004]
[1760559187621,0.53408481,3990.3,3990.2,2.50614004]
[1760559188529,0.53408481,3990.3,3989.5,0.75358423]
[1760559188874,7.5,3990.8,3989.8,2.50634461]
[1760559188875,1.87043043,3990.2,3989.8,2.50634461]
[1760559189025,0.53408481,3990.1,3990.0,2.5062613]
[1760559189459,8.03408481,3990.1,3990.0,2.5062613]
[1760559191229,8.03408481,3990.1,3990.0,3.1448058]
[1760559191418,0.53408481,3990.1,3990.0,3.1448058]
[1760559193336,8.03408481,3990.1,3990.0,2.6310613]
[1760559193648,8.03408481,3990.1,3990.0,2.6330613]
[1760559197331,0.53408481,3990.1,3990.0,2.6330613]
[1760559200934,1e-08,3990.1,3990.0,2.6330613]
[1760559201246,1.33734562,3991.2,3991.0,2.50563768]
[1760559201563,8.83734562,3991.2,3991.0,2.50563768]
[1760559201758,8.83734562,3991.2,3991.0,2.63043768]
[1760559202336,9.73746924,3991.1,3991.0,2.63043768]
[1760559204144,9.73911924,3991.1,3991.0,2.63043768]
[1760559205343,8.40277362,3991.1,3991.0,2.63043768]
[1760559205541,8.40277362,3991.1,3990.1,2.50619594]
[1760559205542,8.87427362,3991.1,3990.0,0.002]
[1760559205869,1.33637675,3990.9,3990.8,2.50576325]
[1760559206058,1.55667675,3990.9,3990.8,2.50576325]
[1760559206240,2.02817675,3990.9,3990.8,2.50576325]
[1760559206446,0.6918,3990.9,3990.8,2.50576325]
[1760559207345,7.5,3990.9,3990.8,2.50576325]
[1760559207555,8.83655004,3990.9,3990.8,2.50576325]
[1760559208283,1.33655004,3990.9,3990.8,2.50576325]
[1760559208458,7.5,3991.0,3990.9,2.50570046]
[1760559208657,7.97315,3991.0,3990.7,2.63062102]
[1760559208979,1.33676867,3990.8,3990.7,2.63062102]
[1760559209153,2.02856867,3990.9,3990.8,2.50576325]
[1760559209350,7.7203,3990.9,3990.8,2.50576325]
[1760559209951,8.1918,3990.9,3990.8,2.50576325]
[1760559210478,7.5,3990.9,3990.8,2.50576325]
[1760559210786,8.83687832,3990.9,3990.8,2.50576325]
[1760559211376,1.33687832,3990.9,3990.8,2.50576325]
[1760559211574,1.33687832,3990.9,3990.8,3.01940736]
[1760559211777,1.33687832,3990.9,3990.8,2.50576325]
[1760559211990,1.33787832,3990.9,3990.8,2.50576325]
[1760559212871,0.001,3990.9,3990.8,2.50576325]
[1760559213079,0.53603835,3990.9,3990.8,2.50576325]
[1760559216491,0.00165,3991.0,3990.9,2.50570046]
[1760559216699,0.00165,3991.0,3990.9,3.26991462]
[1760559216862,0.00165,3991.0,3990.9,3.39471462]
[1760559218901,0.47315,3991.0,3990.9,2.63050046]
[1760559219704,7.97315,3991.0,3990.9,2.63050046]
[1760559221494,7.50165,3991.0,3990.9,2.63050046]
[1760559223273,0.00165,3991.0,3990.9,2.63050046]
[1760559226096,0.8935432,3991.0,3990.9,2.63050046]
[1760559226293,0.00165,3991.0,3990.9,2.63050046]
[1760559228473,0.53716819,3991.0,3990.9,2.63050046]
[1760559229324,0.53716819,3991.0,3990.9,3.14412988]
[1760559229871,0.53816819,3991.0,3990.9,3.14412988]
[1760559233594,0.001,3991.3,3991.2,2.50551212]
[1760559234119,0.4743,3991.3,3991.2,0.1248]
[1760559234289,0.4743,3991.3,3990.9,2.50568902]
[1760559234488,4.86043572,3991.0,3990.8,2.5077447]
[1760559234724,0.6905,3990.9,3990.8,2.5077447]
[1760559236321,8.1905,3990.9,3990.8,2.5077447]
[1760559237696,8.1905,3990.9,3990.8,0.002]
[1760559238525,8.1905,3990.9,3990.8,2.50776325]
[1760559240234,8.1905,3990.9,3990.8,0.002]
[1760559240438,8.1905,3990.9,3990.8,2.50776325]
[1760559241944,7.5,3990.9,3990.8,2.50776325]
[1760559242442,0.469,3991.2,3991.0,2.50563768]
[1760559242443,7.5,3991.1,3991.0,2.50563768]
[1760559242624,7.969,3991.1,3991.0,2.50563768]
[1760559242800,7.5,3991.1,3991.0,2.50563768]
[1760559243000,7.969,3991.1,3991.0,2.50563768]
[1760559244429,0.469,3991.1,3991.0,2.50563768]
[1760559245336,7.969,3991.1,3991.0,2.50563768]
[1760559245930,7.5,3991.1,3991.0,2.50563768]
[1760559246140,7.5,3991.1,3991.0,2.63043768]
[1760559246305,0.001,3991.3,3991.2,2.50551212]
[1760559247135,0.47,3991.3,3991.2,2.50551212]
[1760559247302,7.97,3991.3,3991.2,2.50551212]
[1760559248403,7.501,3991.3,3991.2,2.50551212]
[1760559249441,7.97,3991.3,3991.2,2.50551212]
[1760559252144,12.83043572,3991.3,3990.9,0.002]
[1760559252358,4.86043572,3991.0,3990.9,0.002]
[1760559252842,7.8350734,3991.0,3990.9,0.002]
[1760559253025,7.8350734,3991.0,3990.8,0.002]
[1760559253204,0.2215,3990.9,3990.8,0.002]
[1760559253642,0.6905,3990.9,3990.8,0.002]
[1760559254224,10.69620046,3990.9,3990.8,0.002]
[1760559254541,38.72681746,3990.9,3990.8,0.002]
[1760559255132,36.221117,3990.9,3990.8,0.002]
[1760559256117,37.949117,3990.9,3990.8,0.002]
[1760559257544,9.9185,3990.9,3990.8,0.002]
[1760559258028,9.9185,3990.9,3990.8,2.50776325]
[1760559258234,9.9185,3990.9,3990.8,0.002]
[1760559262253,0.1248,3990.8,3990.6,2.50588244]
[1760559262421,5.42363572,3990.8,3990.7,2.50582604]
[1760559263167,9.228,3990.9,3990.8,2.50576325]
[1760559263374,1.728,3990.9,3990.8,2.50576325]
[1760559263866,1.8528,3991.2,3991.1,2.5055749]
[1760559264036,0.001,3991.3,3991.2,2.50551212]
[1760559265369,7.501,3991.3,3991.2,2.50551212]
[1760559267284,0.001,3991.3,3991.2,3.34501176]
[1760559267489,0.001,3991.3,3991.2,3.46981176]
[1760559267778,0.001,3991.3,3991.2,3.57026064]
[1760559267982,0.001,3991.3,3991.2,3.59531576]
[1760559270250,0.001,3991.6,3991.5,2.50532381]
[1760559270650,0.2216,3992.9,3992.8,2.50450811]
[1760559270974,0.4384,3992.9,3992.7,2.62931664]
[1760559271144,0.4384,3992.8,3992.7,2.62937084]
[1760559271343,0.4384,3992.8,3992.7,2.85097084]
[1760559272264,4.86043572,3993.0,3992.9,2.50444539]
[1760559272564,5.29883572,3993.0,3992.9,2.50444539]
[1760559272871,4.86043572,3993.3,3993.1,2.50431995]
[1760559273475,6.58843572,3993.3,3993.2,2.50425723]
[1760559274471,7.02683572,3993.3,3993.2,2.50425723]
[1760559278855,7.02683572,3993.3,3992.7,0.3464]
[1760559279054,7.02683572,3993.3,3993.2,2.50425723]
[1760559283093,7.02783572,3993.3,3993.2,2.50425723]
[1760559283792,7.02783572,3993.3,3992.7,0.3464]
[1760559283991,5.07433572,3992.8,3992.7,2.50452581]
[1760559284189,5.51273572,3992.8,3992.7,2.50452581]
[1760559287468,0.6523,3992.8,3992.7,2.50452581]
[1760559287668,0.5632,3993.1,3993.0,2.50438266]
[1760559289702,0.1248,3993.1,3993.0,2.50438266]
[1760559289889,0.5632,3993.1,3993.0,2.50438266]
[1760559293590,0.1248,3993.1,3993.0,2.50438266]
[1760559293790,1.729,3993.3,3993.2,2.50425723]
[1760559294104,2.1739,3993.3,3993.2,2.50425723]
[1760559295818,8.0923681,3993.3,3993.2,2.50425723]
[1760559297089,7.6474681,3993.3,3993.2,2.50425723]
[1760559297384,7.6474681,3993.3,3993.0,2.50438266]
[1760559297593,7.6474681,3993.3,3992.7,0.1248]
[1760559297795,8.1179681,3993.3,3993.2,2.50425723]
[1760559300320,0.001,3993.3,3993.2,2.50425723]
[1760559300524,0.001,3993.3,3993.2,3.12992048]
[1760559300700,0.001,3993.3,3993.2,3.88293347]
[1760559301302,0.001,3993.3,3993.2,3.12992048]
[1760559301626,5.9194681,3993.3,3993.2,0.22520173]
[1760559301826,6.3899681,3993.3,3993.2,0.10040173]
[1760559302033,28.030617,3993.2,3991.5,1.728]
[1760559302218,5.9184681,3992.8,3992.3,0.1248]
[1760559302530,0.2158,3992.4,3992.0,0.1248]
[1760559302706,0.2158,3992.4,3992.2,2.50488452]
[1760559302900,0.4705,3992.3,3992.2,2.50488452]
[1760559304837,0.4705,3992.3,3992.1,2.50693228]
[1760559305135,0.4705,3992.2,3992.1,2.50693228]
[1760559307303,0.2158,3992.4,3992.3,2.50482178]
[1760559309844,0.6863,3992.4,3992.3,2.50482178]
[1760559311133,0.2158,3992.4,3992.3,2.50482178]
[1760559311322,0.1248,3992.6,3992.4,2.50470269]
[1760559311647,0.4705,3992.5,3992.3,2.50478359]
[1760559312013,0.4705,3992.5,3992.1,2.50692264]
[1760559312220,0.4705,3992.4,3992.1,2.50692264]
[1760559312418,0.4705,3992.3,3992.2,2.50488452]
[1760559312615,0.4705,3992.3,3992.1,2.50693096]
[1760559312810,0.4705,3992.2,3992.1,2.50693096]
[1760559313426,0.4705,3992.5,3992.2,2.50488452]
[1760559313622,15.7748,3992.6,3992.5,2.5046963]
[1760559314515,15.7748,3992.6,3992.3,2.50480831]
[1760559314709,0.1248,3992.6,3992.3,2.50480831]
[1760559314928,0.5953,3992.6,3992.3,2.50480831]
[1760559315420,0.5953,3992.6,3992.1,2.50692976]
[1760559315421,0.1248,3992.6,3992.5,2.5046963]
[1760559315622,0.001,3993.3,3992.6,2.50459364]
[1760559315821,28.030617,3993.2,3993.0,0.1248]
[1760559316023,0.1248,3992.6,3992.5,0.75307348]
[1760559316235,1.728,3992.5,3992.1,0.002]
[1760559316542,33.9490851,3992.2,3992.1,0.002]
[1760559316948,34.4195851,3992.2,3992.1,0.002]
[1760559317536,36.92446962,3992.2,3992.1,0.002]
[1760559317815,38.65246962,3992.2,3992.1,0.002]
[1760559318444,39.28606962,3992.2,3991.7,0.002]
[1760559318743,32.26400358,3991.4,3991.3,0.002]
[1760559318920,10.15185468,3991.4,3991.3,0.002]
[1760559319121,36.1475851,3991.4,3991.3,0.002]
[1760559320743,38.65297168,3991.4,3991.3,0.002]
[1760559321945,39.28657168,3991.4,3991.3,0.002]
[1760559322242,39.57412714,3991.4,3991.3,0.002]
[1760559323368,4.23370046,3990.9,3990.8,0.002]
[1760559323568,38.40778556,3990.9,3990.8,0.002]
[1760559323743,38.85628556,3990.9,3990.8,0.002]
[1760559325160,39.05936768,3990.9,3990.8,0.002]
[1760559326067,36.55366722,3990.9,3990.8,0.002]
[1760559326366,39.05936768,3990.9,3990.8,0.002]
[1760559328276,11.02875068,3990.9,3990.8,0.002]
[1760559328449,39.05936768,3990.9,3990.8,0.002]
[1760559329263,11.02875068,3990.9,3990.8,0.002]
[1760559329464,39.05936768,3990.9,3990.8,0.002]
[1760559330250,11.02875068,3990.9,3990.8,0.002]
[1760559330447,29.758617,3990.9,3990.8,0.002]
[1760559330647,11.113,3990.9,3990.8,0.002]
[1760559330880,11.2378,3990.9,3990.8,0.002]
[1760559332482,0.1248,3991.4,3990.9,2.50565512]
[1760559332671,1.728,3991.3,3990.9,2.50565512]
[1760559332979,1.728,3991.3,3991.1,2.50557011]
[1760559333183,1.728,3991.3,3991.0,2.50561514]
[1760559333562,1.728,3991.3,3990.9,2.50568601]
[1760559334062,1.728,3991.3,3991.0,2.5056283]
[1760559334262,1.728,3991.3,3990.8,2.5077228]
[1760559334765,1.728,3991.3,3990.9,2.50564955]